[Event "*** SCC Grand Prix: Titled Tuesday Blitz"]
[Site "Chess.com"]
[Date "2020.07.07"]
[Round "5"]
[White "DenisQ"]
[Black "Jospem"]
[Result "1-0"]
[WhiteElo "2661"]
[BlackElo "2882"]
[TimeControl "180+1"]
[EndTime "10:56:46 PDT"]
[Termination "DenisQ won by resignation"]

1. Nf3 {[%clk 0:03:00.9]} 1... c5 {[%clk 0:02:52.5]} 2. c4 {[%clk 0:03:00.8]}
2... Nc6 {[%clk 0:02:52.3]} 3. Nc3 {[%clk 0:03:00.9]} 3... e5 {[%clk 0:02:48.6]}
4. g3 {[%clk 0:02:59.6]} 4... g6 {[%clk 0:02:48.4]} 5. Bg2 {[%clk 0:03:00.1]}
5... Bg7 {[%clk 0:02:48.8]} 6. O-O {[%clk 0:03:00.7]} 6... d6 {[%clk 0:02:49.5]}
7. Ne1 {[%clk 0:03:00.9]} 7... Be6 {[%clk 0:02:49.4]} 8. d3 {[%clk 0:02:59.1]}
8... Nge7 {[%clk 0:02:48.9]} 9. Nd5 {[%clk 0:02:58.2]} 9... O-O {[%clk
0:02:46.3]} 10. Nc2 {[%clk 0:02:57.3]} 10... Qd7 {[%clk 0:02:25.3]} 11. Rb1
{[%clk 0:02:56.1]} 11... Bh3 {[%clk 0:02:08.9]} 12. Nxe7+ {[%clk 0:02:42.2]}
12... Nxe7 {[%clk 0:02:07.7]} 13. b4 {[%clk 0:02:40]} 13... b6 {[%clk 0:01:57]}
14. Bxa8 {[%clk 0:02:33.8]} 14... Bxf1 {[%clk 0:01:51.6]} 15. Qxf1 {[%clk
0:02:32.5]} 15... Rxa8 {[%clk 0:01:51]} 16. Qg2 {[%clk 0:02:31.9]} 16... Rc8
{[%clk 0:01:45.3]} 17. Ne3 {[%clk 0:02:26]} 17... cxb4 {[%clk 0:01:37]} 18. Rxb4
{[%clk 0:02:23.8]} 18... d5 {[%clk 0:01:37.1]} 19. Bd2 {[%clk 0:02:14.6]} 19...
Nc6 {[%clk 0:01:06.5]} 20. Qxd5 {[%clk 0:02:02]} 20... Qh3 {[%clk 0:00:53.4]}
21. Rb1 {[%clk 0:01:54]} 21... Nd4 {[%clk 0:00:53.6]} 22. Re1 {[%clk 0:01:52.7]}
22... Qh5 {[%clk 0:00:52.1]} 23. f3 {[%clk 0:01:48.9]} 23... Qh3 {[%clk
0:00:48.8]} 24. Ng4 {[%clk 0:01:42.1]} 24... Qh5 {[%clk 0:00:29.2]} 25. Qb7
{[%clk 0:01:24.3]} 25... Re8 {[%clk 0:00:18.6]} 26. Qxa7 {[%clk 0:01:22]} 26...
f5 {[%clk 0:00:18.7]} 27. Qd7 {[%clk 0:01:17.8]} 27... g5 {[%clk 0:00:15.4]} 28.
Nf2 {[%clk 0:01:09.2]} 28... Qg6 {[%clk 0:00:08.9]} 29. Kg2 {[%clk 0:01:04]}
29... h6 {[%clk 0:00:08.9]} 30. e3 {[%clk 0:01:03]} 30... Ne6 {[%clk 0:00:08.2]}
31. Rb1 {[%clk 0:00:54.9]} 31... Rd8 {[%clk 0:00:07.3]} 32. Qe7 {[%clk
0:00:52.5]} 32... Bf8 {[%clk 0:00:06]} 33. Qb7 {[%clk 0:00:52.2]} 33... Rd6
{[%clk 0:00:05.2]} 34. Bb4 {[%clk 0:00:46]} 34... Nc5 {[%clk 0:00:02.8]} 35.
Bxc5 {[%clk 0:00:45.6]} 35... bxc5 {[%clk 0:00:03.7]} 36. Qc7 {[%clk 0:00:41.5]}
36... f4 {[%clk 0:00:03.9]} 37. exf4 {[%clk 0:00:39]} 37... gxf4 {[%clk
0:00:04.7]} 38. Rb8 {[%clk 0:00:38.6]} 38... fxg3 {[%clk 0:00:03.3]} 39. hxg3
{[%clk 0:00:39.5]} 39... Rf6 {[%clk 0:00:03.5]} 40. Ng4 {[%clk 0:00:35.6]} 40...
Re6 {[%clk 0:00:02.1]} 41. Qc8 {[%clk 0:00:32.1]} 41... Qf7 {[%clk 0:00:02.1]}
42. Rb7 {[%clk 0:00:26.3]} 42... Qg6 {[%clk 0:00:02.8]} 43. Qd7 {[%clk
0:00:22.1]} 43... h5 {[%clk 0:00:02.8]} 44. Ne3 {[%clk 0:00:19.8]} 44... Rd6
{[%clk 0:00:03.2]} 45. Qf5 {[%clk 0:00:17.6]} 45... Qxf5 {[%clk 0:00:03]} 46.
Nxf5 {[%clk 0:00:18.5]} 46... Rxd3 {[%clk 0:00:03.8]} 47. a4 {[%clk 0:00:18.3]}
47... Ra3 {[%clk 0:00:03.9]} 48. Ra7 {[%clk 0:00:18]} 48... Rc3 {[%clk
0:00:02.7]} 49. a5 {[%clk 0:00:16.7]} 49... Rxc4 {[%clk 0:00:03.1]} 50. a6
{[%clk 0:00:17.3]} 50... Ra4 {[%clk 0:00:03.4]} 51. Ra8 {[%clk 0:00:16.2]} 51...
Kf7 {[%clk 0:00:03.9]} 52. Ra7+ {[%clk 0:00:16.3]} 52... Kf6 {[%clk 0:00:03.9]}
53. Ne3 {[%clk 0:00:16.5]} 53... Ke6 {[%clk 0:00:04.3]} 54. Ra8 {[%clk
0:00:12.9]} 54... Be7 {[%clk 0:00:04.7]} 55. a7 {[%clk 0:00:12.3]} 55... c4
{[%clk 0:00:05.1]} 56. Nxc4 {[%clk 0:00:11.3]} 56... Ra2+ {[%clk 0:00:03.6]} 57.
Kh3 {[%clk 0:00:10.8]} 57... Kd5 {[%clk 0:00:04.2]} 58. Nb6+ {[%clk 0:00:09.6]}
58... Kc6 {[%clk 0:00:04.8]} 59. Rc8+ {[%clk 0:00:09.4]} 59... Kxb6 {[%clk
0:00:05.2]} 60. a8=Q {[%clk 0:00:10.3]} 60... Rxa8 {[%clk 0:00:05]} 61. Rxa8
{[%clk 0:00:11.2]} 1-0

[Event "*** SCC Grand Prix: Titled Tuesday Blitz"]
[Site "Chess.com"]
[Date "2020.07.07"]
[Round "5"]
[White "FMalexhdez"]
[Black "MFBerna"]
[Result "0-1"]
[WhiteElo "2132"]
[BlackElo "2387"]
[TimeControl "180+1"]
[EndTime "10:56:49 PDT"]
[Termination "MFBerna won by resignation"]

1. e4 {[%clk 0:03:00.9]} 1... c5 {[%clk 0:02:57.5]} 2. Nf3 {[%clk 0:02:59.6]}
2... e6 {[%clk 0:02:52.2]} 3. d4 {[%clk 0:02:59.9]} 3... cxd4 {[%clk 0:02:51.9]}
4. Nxd4 {[%clk 0:03:00.5]} 4... Nc6 {[%clk 0:02:52.5]} 5. Nc3 {[%clk 0:03:00.4]}
5... Qc7 {[%clk 0:02:52.6]} 6. Nb3 {[%clk 0:02:50.6]} 6... Nf6 {[%clk
0:02:51.4]} 7. Be2 {[%clk 0:02:50.6]} 7... Bb4 {[%clk 0:02:49.6]} 8. f3 {[%clk
0:02:37.6]} 8... d5 {[%clk 0:02:48]} 9. exd5 {[%clk 0:02:35.3]} 9... Nxd5 {[%clk
0:02:48.9]} 10. Bd2 {[%clk 0:02:35.4]} 10... Nxc3 {[%clk 0:02:28.7]} 11. bxc3
{[%clk 0:02:34]} 11... Bd6 {[%clk 0:02:29]} 12. g3 {[%clk 0:02:22.8]} 12... O-O
{[%clk 0:02:07.8]} 13. O-O {[%clk 0:02:18]} 13... Ne7 {[%clk 0:01:38.9]} 14. f4
{[%clk 0:02:15.8]} 14... b6 {[%clk 0:01:31.1]} 15. Bf3 {[%clk 0:02:13.6]} 15...
Bb7 {[%clk 0:01:30]} 16. Nd4 {[%clk 0:02:03.4]} 16... a6 {[%clk 0:01:26.7]} 17.
Bxb7 {[%clk 0:01:58.2]} 17... Qxb7 {[%clk 0:01:27.6]} 18. Qf3 {[%clk 0:01:58.2]}
18... Qxf3 {[%clk 0:01:22.8]} 19. Rxf3 {[%clk 0:01:47.2]} 19... Rfd8 {[%clk
0:01:22.1]} 20. Kf1 {[%clk 0:01:41.5]} 20... Rac8 {[%clk 0:01:20.2]} 21. Rb1
{[%clk 0:01:39.9]} 21... b5 {[%clk 0:01:18.8]} 22. Rd3 {[%clk 0:01:25]} 22... g6
{[%clk 0:01:04.2]} 23. Ke2 {[%clk 0:01:13.8]} 23... Nd5 {[%clk 0:01:03.7]} 24.
Nf3 {[%clk 0:01:07.9]} 24... Nb6 {[%clk 0:00:52.3]} 25. Be3 {[%clk 0:01:00.2]}
25... Nc4 {[%clk 0:00:51.8]} 26. Bd4 {[%clk 0:00:57.6]} 26... Be7 {[%clk
0:00:46.1]} 27. Ne5 {[%clk 0:00:56.6]} 27... f6 {[%clk 0:00:32.6]} 28. Nxc4
{[%clk 0:00:53.2]} 28... Rxc4 {[%clk 0:00:33.5]} 29. Kd2 {[%clk 0:00:49.6]}
29... Kf7 {[%clk 0:00:33.1]} 30. Kc1 {[%clk 0:00:37.9]} 30... Rd5 {[%clk
0:00:24.3]} 31. Kd2 {[%clk 0:00:34.2]} 31... h5 {[%clk 0:00:17]} 32. h4 {[%clk
0:00:32.5]} 32... Ke8 {[%clk 0:00:13.7]} 33. Re1 {[%clk 0:00:31.7]} 33... Kd7
{[%clk 0:00:13.9]} 34. Rde3 {[%clk 0:00:30]} 34... Rc6 {[%clk 0:00:09.7]} 35.
Kc1 {[%clk 0:00:28]} 35... b4 {[%clk 0:00:08.5]} 36. Kb2 {[%clk 0:00:21.1]}
36... a5 {[%clk 0:00:07.6]} 37. cxb4 {[%clk 0:00:19.8]} 37... Rxd4 {[%clk
0:00:07.4]} 38. b5 {[%clk 0:00:18.7]} 38... Rb4+ {[%clk 0:00:07.5]} 39. Kc1
{[%clk 0:00:16.2]} 39... Rxb5 {[%clk 0:00:07.5]} 40. Rd1+ {[%clk 0:00:14.6]}
40... Rd5 {[%clk 0:00:08]} 41. Red3 {[%clk 0:00:14.2]} 41... Rxd3 {[%clk
0:00:07.8]} 42. Rxd3+ {[%clk 0:00:14.9]} 42... Kc7 {[%clk 0:00:08.4]} 43. Rb3
{[%clk 0:00:11.5]} 43... a4 {[%clk 0:00:08.5]} 44. Rb5 {[%clk 0:00:10.4]} 44...
a3 {[%clk 0:00:08.7]} 45. Ra5 {[%clk 0:00:10.2]} 45... Rb6 {[%clk 0:00:09.2]}
46. Kd1 {[%clk 0:00:08.3]} 46... Rb1+ {[%clk 0:00:08.6]} 47. Ke2 {[%clk
0:00:08.3]} 47... Rb2 {[%clk 0:00:09.1]} 48. Ra7+ {[%clk 0:00:07.8]} 48... Kd8
{[%clk 0:00:09.4]} 49. Ra8+ {[%clk 0:00:07.6]} 49... Kd7 {[%clk 0:00:09.7]} 50.
Ra7+ {[%clk 0:00:08.3]} 50... Ke8 {[%clk 0:00:10.2]} 51. Ra8+ {[%clk 0:00:07.7]}
51... Kf7 {[%clk 0:00:10.1]} 52. Kd3 {[%clk 0:00:08.2]} 52... Rxa2 {[%clk
0:00:10.2]} 53. Kc3 {[%clk 0:00:07.6]} 53... f5 {[%clk 0:00:08.7]} 54. Ra7
{[%clk 0:00:06.8]} 54... Kf6 {[%clk 0:00:08]} 55. Kb3 {[%clk 0:00:07.3]} 55...
Ra1 {[%clk 0:00:06.6]} 56. Kc3 {[%clk 0:00:07.6]} 56... Rg1 {[%clk 0:00:06.5]}
57. Kd4 {[%clk 0:00:06.1]} 57... Rxg3 {[%clk 0:00:05.8]} 58. c4 {[%clk
0:00:06.4]} 58... Rf3 {[%clk 0:00:05.4]} 59. c5 {[%clk 0:00:05.4]} 59... Rxf4+
{[%clk 0:00:05.6]} 60. Ke3 {[%clk 0:00:06]} 60... Bxc5+ {[%clk 0:00:04.9]} 0-1

[Event "*** SCC Grand Prix: Titled Tuesday Blitz"]
[Site "Chess.com"]
[Date "2020.07.07"]
[Round "5"]
[White "mishanick"]
[Black "Shubinkirill2003"]
[Result "1-0"]
[WhiteElo "2855"]
[BlackElo "2618"]
[TimeControl "180+1"]
[EndTime "10:56:57 PDT"]
[Termination "mishanick won on time"]

1. Nf3 {[%clk 0:03:00.9]} 1... Nf6 {[%clk 0:02:59.3]} 2. g3 {[%clk 0:03:01.2]}
2... b5 {[%clk 0:02:58.8]} 3. Bg2 {[%clk 0:02:59.2]} 3... Bb7 {[%clk 0:02:58.6]}
4. O-O {[%clk 0:02:59.8]} 4... e6 {[%clk 0:02:57]} 5. d3 {[%clk 0:02:59.9]} 5...
c5 {[%clk 0:02:56.8]} 6. e4 {[%clk 0:02:52.9]} 6... d6 {[%clk 0:02:56.4]} 7. a4
{[%clk 0:02:52.9]} 7... b4 {[%clk 0:02:56.1]} 8. b3 {[%clk 0:02:51.4]} 8... Nc6
{[%clk 0:02:55.1]} 9. Bb2 {[%clk 0:02:51.1]} 9... Be7 {[%clk 0:02:51]} 10. Nbd2
{[%clk 0:02:51.5]} 10... Qc7 {[%clk 0:02:48.4]} 11. Nc4 {[%clk 0:02:51.9]} 11...
O-O {[%clk 0:02:42.7]} 12. e5 {[%clk 0:02:46.2]} 12... dxe5 {[%clk 0:02:41.8]}
13. Nfxe5 {[%clk 0:02:47.1]} 13... Nxe5 {[%clk 0:02:36.1]} 14. Bxe5 {[%clk
0:02:46.4]} 14... Qc8 {[%clk 0:02:35.8]} 15. Bxf6 {[%clk 0:02:18.9]} 15... gxf6
{[%clk 0:02:04.8]} 16. Qg4+ {[%clk 0:02:18.2]} 16... Kh8 {[%clk 0:02:04.4]} 17.
Bxb7 {[%clk 0:02:18.7]} 17... Qxb7 {[%clk 0:02:05.3]} 18. Qe4 {[%clk 0:02:18.9]}
18... Qc7 {[%clk 0:01:54.6]} 19. Kg2 {[%clk 0:02:18]} 19... Rad8 {[%clk
0:01:46.9]} 20. Rae1 {[%clk 0:02:18.6]} 20... f5 {[%clk 0:01:33.5]} 21. Qe5+
{[%clk 0:01:53.3]} 21... Qxe5 {[%clk 0:01:32.2]} 22. Rxe5 {[%clk 0:01:54.2]}
22... Kg7 {[%clk 0:01:20.1]} 23. f4 {[%clk 0:01:52]} 23... Rc8 {[%clk
0:01:10.5]} 24. Kf3 {[%clk 0:01:50.8]} 24... h5 {[%clk 0:01:09.5]} 25. h3 {[%clk
0:01:49.7]} 25... Bf6 {[%clk 0:01:06.2]} 26. Re2 {[%clk 0:01:49.6]} 26... Rh8
{[%clk 0:00:52.3]} 27. Rg2 {[%clk 0:01:46.2]} 27... Kf8 {[%clk 0:00:49.5]} 28.
g4 {[%clk 0:01:39.5]} 28... hxg4+ {[%clk 0:00:48.4]} 29. hxg4 {[%clk 0:01:40.4]}
29... fxg4+ {[%clk 0:00:39.8]} 30. Rxg4 {[%clk 0:01:39]} 30... Ke7 {[%clk
0:00:40]} 31. f5 {[%clk 0:01:33.1]} 31... Rh2 {[%clk 0:00:31.5]} 32. fxe6 {[%clk
0:01:15.9]} 32... fxe6 {[%clk 0:00:32.4]} 33. Rg2 {[%clk 0:01:15.2]} 33... Rch8
{[%clk 0:00:27.7]} 34. Rff2 {[%clk 0:01:08]} 34... R8h3+ {[%clk 0:00:26.3]} 35.
Ke2 {[%clk 0:01:07.7]} 35... Rxg2 {[%clk 0:00:18.7]} 36. Rxg2 {[%clk 0:01:07.5]}
36... Bd4 {[%clk 0:00:18.9]} 37. a5 {[%clk 0:01:01.4]} 37... a6 {[%clk
0:00:15.8]} 38. Nd2 {[%clk 0:00:32.8]} 38... Rh1 {[%clk 0:00:14.2]} 39. Nc4
{[%clk 0:00:28.4]} 39... Rh3 {[%clk 0:00:13.1]} 40. Kd1 {[%clk 0:00:26.5]} 40...
Rh1+ {[%clk 0:00:12.3]} 41. Kd2 {[%clk 0:00:26.4]} 41... Rh3 {[%clk 0:00:12.3]}
42. Ke2 {[%clk 0:00:26.4]} 42... Rh1 {[%clk 0:00:12]} 43. Kf3 {[%clk 0:00:25.7]}
43... Rh3+ {[%clk 0:00:11.8]} 44. Kg4 {[%clk 0:00:25.4]} 44... Rh1 {[%clk
0:00:11.9]} 45. Kf4 {[%clk 0:00:21.6]} 45... Rf1+ {[%clk 0:00:10.2]} 46. Kg3
{[%clk 0:00:20.8]} 46... Rc1 {[%clk 0:00:06.9]} 47. Rh2 {[%clk 0:00:19.4]} 47...
Kd7 {[%clk 0:00:06.6]} 48. Kf3 {[%clk 0:00:17.1]} 48... Kc6 {[%clk 0:00:05.2]}
49. Rh6 {[%clk 0:00:14.5]} 49... Kd5 {[%clk 0:00:04.1]} 50. Rh5+ {[%clk
0:00:14.4]} 50... Kc6 {[%clk 0:00:04]} 51. Rh2 {[%clk 0:00:15]} 51... Rf1+
{[%clk 0:00:03.1]} 52. Ke2 {[%clk 0:00:14.1]} 52... Rg1 {[%clk 0:00:03.3]} 53.
Rh6 {[%clk 0:00:11.4]} 53... Rg2+ {[%clk 0:00:03]} 54. Kf3 {[%clk 0:00:10.7]}
54... Rf2+ {[%clk 0:00:03.3]} 55. Kg3 {[%clk 0:00:10.9]} 55... Kd5 {[%clk
0:00:02.4]} 56. Rh5+ {[%clk 0:00:09.8]} 56... Kc6 {[%clk 0:00:02.5]} 57. Rh8
{[%clk 0:00:06.3]} 57... Rxc2 {[%clk 0:00:01.5]} 58. Rc8+ {[%clk 0:00:06]} 58...
Kb5 {[%clk 0:00:01.2]} 59. Nd6+ {[%clk 0:00:04.3]} 59... Kxa5 {[%clk 0:00:01]}
60. Rb8 {[%clk 0:00:04.9]} 1-0

[Event "*** SCC Grand Prix: Titled Tuesday Blitz"]
[Site "Chess.com"]
[Date "2020.07.07"]
[Round "5"]
[White "bascheyaro"]
[Black "Srisshhhtea"]
[Result "1-0"]
[WhiteElo "2702"]
[BlackElo "2501"]
[TimeControl "180+1"]
[EndTime "10:57:00 PDT"]
[Termination "bascheyaro won by resignation"]

1. d4 {[%clk 0:03:00.9]} 1... Nf6 {[%clk 0:02:57.6]} 2. c4 {[%clk 0:03:01.2]}
2... c5 {[%clk 0:02:54.5]} 3. Nf3 {[%clk 0:03:01.3]} 3... g6 {[%clk 0:02:45.1]}
4. Nc3 {[%clk 0:03:00.5]} 4... cxd4 {[%clk 0:02:44.5]} 5. Nxd4 {[%clk
0:03:00.5]} 5... Bg7 {[%clk 0:02:45.4]} 6. g3 {[%clk 0:03:01]} 6... O-O {[%clk
0:02:45.1]} 7. Bg2 {[%clk 0:03:01.5]} 7... Nc6 {[%clk 0:02:43.7]} 8. O-O {[%clk
0:03:01.3]} 8... Nxd4 {[%clk 0:02:38.5]} 9. Qxd4 {[%clk 0:03:01]} 9... d6 {[%clk
0:02:37.4]} 10. h3 {[%clk 0:02:58.5]} 10... Qa5 {[%clk 0:02:32.6]} 11. Qd3
{[%clk 0:02:50.4]} 11... Bf5 {[%clk 0:02:30.9]} 12. e4 {[%clk 0:02:50.4]} 12...
Be6 {[%clk 0:02:28.7]} 13. Bd2 {[%clk 0:02:48]} 13... Qh5 {[%clk 0:02:24]} 14.
g4 {[%clk 0:02:31]} 14... Qc5 {[%clk 0:02:20.5]} 15. b3 {[%clk 0:02:29.6]} 15...
h5 {[%clk 0:02:15.7]} 16. g5 {[%clk 0:02:23.2]} 16... Nd7 {[%clk 0:02:11.7]} 17.
Rac1 {[%clk 0:02:18]} 17... Ne5 {[%clk 0:02:08.7]} 18. Qe2 {[%clk 0:02:18.2]}
18... Nc6 {[%clk 0:02:08.4]} 19. Be3 {[%clk 0:02:12.7]} 19... Bd4 {[%clk
0:01:58.9]} 20. Nd5 {[%clk 0:02:03.4]} 20... Bxe3 {[%clk 0:01:52.9]} 21. fxe3
{[%clk 0:02:03.4]} 21... Rae8 {[%clk 0:01:40.8]} 22. Qd2 {[%clk 0:01:51.3]}
22... Ne5 {[%clk 0:01:35.3]} 23. Qd4 {[%clk 0:01:49]} 23... Qc8 {[%clk
0:01:13.2]} 24. Nf4 {[%clk 0:01:43.7]} 24... b6 {[%clk 0:01:07]} 25. Kh2 {[%clk
0:01:40.1]} 25... Kh7 {[%clk 0:01:00]} 26. Rf2 {[%clk 0:01:33.9]} 26... Bd7
{[%clk 0:00:45]} 27. Rcf1 {[%clk 0:01:32.5]} 27... Kg8 {[%clk 0:00:38.2]} 28.
Nd3 {[%clk 0:01:14.9]} 28... Nxd3 {[%clk 0:00:31]} 29. Qxd3 {[%clk 0:01:15.8]}
29... Qc7 {[%clk 0:00:29.9]} 30. Kg1 {[%clk 0:01:04.5]} 30... Be6 {[%clk
0:00:27.6]} 31. a4 {[%clk 0:00:44.8]} 31... Rc8 {[%clk 0:00:25]} 32. h4 {[%clk
0:00:43.7]} 32... Qd7 {[%clk 0:00:22]} 33. Kh2 {[%clk 0:00:40.2]} 33... Qc7
{[%clk 0:00:21.3]} 34. Rf4 {[%clk 0:00:39.3]} 34... Bd7 {[%clk 0:00:19.8]} 35.
R1f2 {[%clk 0:00:37.4]} 35... Bg4 {[%clk 0:00:19.9]} 36. Bf1 {[%clk 0:00:35.7]}
36... Be6 {[%clk 0:00:17.8]} 37. Be2 {[%clk 0:00:35.3]} 37... Bd7 {[%clk
0:00:17.4]} 38. Qc3 {[%clk 0:00:32.5]} 38... Be6 {[%clk 0:00:16.6]} 39. Kg2
{[%clk 0:00:30.2]} 39... a6 {[%clk 0:00:17]} 40. Qd4 {[%clk 0:00:29.4]} 40... b5
{[%clk 0:00:14.8]} 41. cxb5 {[%clk 0:00:26.2]} 41... axb5 {[%clk 0:00:15.7]} 42.
Bxb5 {[%clk 0:00:21.7]} 42... Bxb3 {[%clk 0:00:16.1]} 43. Qb2 {[%clk 0:00:21.7]}
43... Be6 {[%clk 0:00:15.6]} 44. Rd2 {[%clk 0:00:17.2]} 44... Qc3 {[%clk
0:00:15.5]} 45. Kf2 {[%clk 0:00:14.5]} 45... Qa5 {[%clk 0:00:13.7]} 46. e5
{[%clk 0:00:13]} 46... dxe5 {[%clk 0:00:12.9]} 47. Re4 {[%clk 0:00:13.5]} 47...
Rfd8 {[%clk 0:00:09.1]} 48. Re2 {[%clk 0:00:13.4]} 48... Bg4 {[%clk 0:00:07.3]}
49. Rxe5 {[%clk 0:00:13.1]} 49... Bxe2 {[%clk 0:00:06.7]} 50. Bxe2 {[%clk
0:00:14]} 50... e6 {[%clk 0:00:07.4]} 51. Rxa5 {[%clk 0:00:14.1]} 51... Rb8
{[%clk 0:00:06.4]} 52. Qf6 {[%clk 0:00:14.4]} 52... Rf8 {[%clk 0:00:06]} 53. Ra7
{[%clk 0:00:14.5]} 53... Rbd8 {[%clk 0:00:05.6]} 54. a5 {[%clk 0:00:14.8]} 54...
Rb8 {[%clk 0:00:05.1]} 55. a6 {[%clk 0:00:15.1]} 55... Rbc8 {[%clk 0:00:05.4]}
56. Rb7 {[%clk 0:00:15.3]} 56... Ra8 {[%clk 0:00:05.6]} 57. a7 {[%clk
0:00:15.6]} 57... Rac8 {[%clk 0:00:04.6]} 58. Bf3 {[%clk 0:00:15.9]} 58... Rcd8
{[%clk 0:00:03.4]} 59. Rxf7 {[%clk 0:00:14.8]} 59... Ra8 {[%clk 0:00:04]} 60.
Rxf8+ {[%clk 0:00:14.5]} 60... Rxf8 {[%clk 0:00:02.6]} 61. Qxf8+ {[%clk
0:00:14.7]} 61... Kxf8 {[%clk 0:00:03.5]} 62. a8=Q+ {[%clk 0:00:14.9]} 1-0

[Event "*** SCC Grand Prix: Titled Tuesday Blitz"]
[Site "Chess.com"]
[Date "2020.07.07"]
[Round "5"]
[White "GoltsevDmitry2000"]
[Black "sergiochess83"]
[Result "0-1"]
[WhiteElo "2567"]
[BlackElo "2833"]
[TimeControl "180+1"]
[EndTime "10:57:01 PDT"]
[Termination "sergiochess83 won on time"]

1. e4 {[%clk 0:02:55.6]} 1... c5 {[%clk 0:02:58.4]} 2. Nf3 {[%clk 0:02:55.3]}
2... d6 {[%clk 0:02:58.4]} 3. d4 {[%clk 0:02:55.1]} 3... cxd4 {[%clk 0:02:58.5]}
4. Nxd4 {[%clk 0:02:56]} 4... Nf6 {[%clk 0:02:58.6]} 5. Nc3 {[%clk 0:02:55.7]}
5... a6 {[%clk 0:02:58.2]} 6. Be2 {[%clk 0:02:55.5]} 6... e6 {[%clk 0:02:57.3]}
7. O-O {[%clk 0:02:55.7]} 7... Be7 {[%clk 0:02:55.6]} 8. Be3 {[%clk 0:02:55.5]}
8... Qc7 {[%clk 0:02:55.2]} 9. f4 {[%clk 0:02:55.3]} 9... b5 {[%clk 0:02:53.9]}
10. a3 {[%clk 0:02:53.8]} 10... Bb7 {[%clk 0:02:54.1]} 11. Bf3 {[%clk
0:02:54.2]} 11... Nbd7 {[%clk 0:02:54.4]} 12. Qe2 {[%clk 0:02:54.3]} 12... O-O
{[%clk 0:02:54.6]} 13. Rad1 {[%clk 0:02:53.8]} 13... Rfe8 {[%clk 0:02:54.2]} 14.
Rfe1 {[%clk 0:02:53.9]} 14... Bf8 {[%clk 0:02:54]} 15. Bf2 {[%clk 0:02:54.2]}
15... e5 {[%clk 0:02:52.1]} 16. fxe5 {[%clk 0:02:45.8]} 16... Nxe5 {[%clk
0:02:49.8]} 17. Nf5 {[%clk 0:02:43.3]} 17... g6 {[%clk 0:02:35.4]} 18. Bh4
{[%clk 0:02:31.8]} 18... Nfd7 {[%clk 0:02:28.9]} 19. Ne3 {[%clk 0:02:25.8]}
19... Nb6 {[%clk 0:02:28.3]} 20. Kh1 {[%clk 0:02:18.4]} 20... Bg7 {[%clk
0:02:28]} 21. Ned5 {[%clk 0:02:03.7]} 21... Bxd5 {[%clk 0:02:25.5]} 22. Nxd5
{[%clk 0:02:04.6]} 22... Nxd5 {[%clk 0:02:25.4]} 23. Rxd5 {[%clk 0:02:05.5]}
23... Nxf3 {[%clk 0:02:16.8]} 24. Qxf3 {[%clk 0:01:54.4]} 24... Bxb2 {[%clk
0:02:12.7]} 25. Bf6 {[%clk 0:01:38]} 25... Bxf6 {[%clk 0:02:05.8]} 26. Qxf6
{[%clk 0:01:38.9]} 26... Re6 {[%clk 0:02:06.3]} 27. Qd4 {[%clk 0:01:33.5]} 27...
Rae8 {[%clk 0:02:02.3]} 28. h3 {[%clk 0:01:27.8]} 28... Rc8 {[%clk 0:01:06.8]}
29. Re2 {[%clk 0:00:50.6]} 29... Qc4 {[%clk 0:01:00.8]} 30. Qd3 {[%clk
0:00:42.7]} 30... Qc3 {[%clk 0:00:30.9]} 31. Rxd6 {[%clk 0:00:27.5]} 31... Qa1+
{[%clk 0:00:21.3]} 32. Qd1 {[%clk 0:00:27.3]} 32... Qxd1+ {[%clk 0:00:20.5]} 33.
Rxd1 {[%clk 0:00:28.2]} 33... Rc4 {[%clk 0:00:20]} 34. Rd8+ {[%clk 0:00:16.8]}
34... Kg7 {[%clk 0:00:19.7]} 35. Ra8 {[%clk 0:00:16.9]} 35... Rc3 {[%clk
0:00:08.2]} 36. Ra7 {[%clk 0:00:06.3]} 36... Rxa3 {[%clk 0:00:07]} 37. e5 {[%clk
0:00:06.6]} 37... g5 {[%clk 0:00:06.3]} 38. Rf2 {[%clk 0:00:06.4]} 38... Rxe5
{[%clk 0:00:05.7]} 39. Rfxf7+ {[%clk 0:00:06.9]} 39... Kg6 {[%clk 0:00:06.3]}
40. Rxh7 {[%clk 0:00:07.2]} 40... Kf5 {[%clk 0:00:06.5]} 41. Rhf7+ {[%clk
0:00:07.2]} 41... Ke4 {[%clk 0:00:06.2]} 42. Rf6 {[%clk 0:00:05.7]} 42... a5
{[%clk 0:00:06.3]} 43. Kh2 {[%clk 0:00:06.2]} 43... b4 {[%clk 0:00:06.7]} 44.
Rf1 {[%clk 0:00:06.2]} 44... Rc5 {[%clk 0:00:05.7]} 45. Re1+ {[%clk 0:00:04.7]}
45... Kd4 {[%clk 0:00:06.1]} 46. Re2 {[%clk 0:00:04.4]} 46... Kc3 {[%clk
0:00:06.1]} 47. g3 {[%clk 0:00:03]} 47... Kb2 {[%clk 0:00:05.7]} 48. h4 {[%clk
0:00:03.2]} 48... gxh4 {[%clk 0:00:05.9]} 49. gxh4 {[%clk 0:00:04.1]} 49... Rxc2
{[%clk 0:00:05.8]} 50. Rxc2+ {[%clk 0:00:04.6]} 50... Kxc2 {[%clk 0:00:06.7]}
51. h5 {[%clk 0:00:05.5]} 51... b3 {[%clk 0:00:06.8]} 52. h6 {[%clk 0:00:05.6]}
52... Ra4 {[%clk 0:00:06]} 53. Kh3 {[%clk 0:00:04.7]} 53... b2 {[%clk 0:00:06]}
54. Rc7+ {[%clk 0:00:03.2]} 54... Kb3 {[%clk 0:00:05.6]} 55. h7 {[%clk
0:00:02.9]} 55... b1=Q {[%clk 0:00:05.4]} 0-1